Cogmind - Beta 17 @@@ ROGUE MODE // 2026.08.03 @ 16:55:41 Player: M1-K3 Result: Destroyed by Y-54 Guardian with Gatling Laser Performance ------------- Evolutions (1) 500 Regions Visited (3) 600 Robots Destroyed (33) 165 Value Destroyed (804) 804 Prototype IDs (0) 0 Alien Tech Used (0) 0 Bonus (5146) 5146 TOTAL SCORE: 7215 Bonus ------- Follower Combat Kills 33 Prayed to X0-1V1 5000 Major X0-1V1 Interference 250 Friendly Fire -137 Cogmind --------- Core Integrity 0/400 Matter 226/400 Energy 94/100 System Corruption 1% Temperature Cool (12) Movement Core (800) Ox15 Location -9/Storage Parts ------- > --- POWER (1) -------- (None) > --- PROPULSION (2) --- (None) > --- UTILITY (3) ------ Large Storage Unit Large Storage Unit Medium Matter Pod > --- WEAPON (3) ------- EM Shotgun (fused) Datajack > --- INVENTORY (15) --- Aluminum Leg Aluminum Leg Aluminum Leg X0-1V1's Piety Tracker Peak State ------------ > --- POWER ------------ Light Ion Engine > --- PROPULSION ------- Wheel Wheel > --- UTILITY ---------- Large Storage Unit Large Storage Unit Propulsion Shielding > --- WEAPON ----------- Assault Rifle Light Assault Rifle Shotgun > --- INVENTORY -------- Light Ion Engine Aluminum Leg Aluminum Leg Utility Shielding X0-1V1's Piety Tracker EM Pulse Gun EM Pulse Gun Small Laser Shotgun Grenade Launcher Datajack [Rating: 12] Favorites ----------- Power Light Ion Engine Engine Light Ion Engine Propulsion Aluminum Leg Leg Aluminum Leg Wheel Wheel Utility Large Storage Unit Storage Large Storage Unit Protection Propulsion Shielding Weapon Assault Rifle Energy Gun EM Pulse Gun Ballistic Gun Assault Rifle Ballistic Cannon Improved Light Cannon Launcher Grenade Launcher Special Melee Weapon Datajack Build | -11 -10 -9 -9 ------- Run | Yrd Mat Mat Sto Slots Evolved 2 | . . 2 . Power . | . . . . Propulsion . | . . . . Utility 1 | . . 1 . Weapon 1 | . . 1 . Parts Attached 31 | 5 2 11 13 Power 5 | 1 . 2 2 Engine 5 | 1 . 2 2 Core . | . . . . Reactor . | . . . . Propulsion 6 | 2 . 2 2 Treads . | . . . . Leg 4 | . . 2 2 Wheel 2 | 2 . . . Hover . | . . . . Flight . | . . . . Utility 5 | . 2 1 2 Device . | . . . . Storage 3 | . 2 . 1 Processor . | . . . . Hackware . | . . . . Protection 2 | . . 1 1 Artifact . | . . . . Weapon 15 | 2 . 6 7 Energy Gun 5 | . . 2 3 Energy Cannon . | . . . . Ballistic Gun 7 | 2 . 4 1 Ballistic Cannon 1 | . . . 1 Launcher 1 | . . . 1 Special Weapon . | . . . . Impact Weapon . | . . . . Slashing Weapon . | . . . . Piercing Weapon . | . . . . Special Melee Weapon 1 | . . . 1 Unidentified Prototypes . | . . . . Corrupted Parts 1 | . . . 1 System Corruption 1 | . . . 1 Parts Lost 23 | . . 7 16 Power 4 | . . 1 3 Propulsion 4 | . . 2 2 Utility 2 | . . . 2 Weapon 13 | . . 4 9 Highest Loss Streak 16 | . . 6 16 To Critical Strikes . | . . . . Average Backups 9 | 1 6 11 12 Power 1 | . . 1 1 Propulsion 3 | 1 2 2 4 Utility 1 | . 1 2 1 Weapon 3 | . 3 3 3 Tool/Special . | . . . . Unused Backups 10 | . 3 3 4 Power 1 | . . 1 . Propulsion 6 | . 1 2 3 Utility 2 | . 1 . 1 Weapon 1 | . 1 . . Tool/Special . | . . . . Average Slot Usage (%) 92 | . 94 96 87 Engine 11 | . 14 11 10 Leg 11 | . . 15 19 Wheel 11 | . 28 5 . Storage 22 | . 22 22 22 Protection 6 | . . 10 8 Energy Gun 6 | . . 10 9 Ballistic Gun 21 | . 28 20 15 Peak Build Rating 12 | 5 9 12 12 Average Rating 9 | 3 7 11 10 On Entrance 6 | . 5 9 12 Avg Prop Armor Cover (%) . | . . . . Naked Turns . | . . . . Heaviest Build 51 | 7 47 51 50 Greatest Support 20 | 20 20 20 20 Greatest Overweight (x) 16 | . 2 2 16 Average Overweight (x) 1 | . 1 2 2 Largest Inventory Capacity 15 | 5 15 15 15 Average Capacity 13 | 5 13 15 15 Most Carried 15 | 5 12 15 15 Average Carried 9 | 2 6 11 12 Final Capacity 15 | 5 15 15 15 Final Carried 14 | 5 12 14 4 Class Distribution -------------------- 57% | Mutant 40% | Tank Dominant Class ---------------- Mutant | -10/Materials Tank | -9/Materials Tank | -9/Storage Resources | -11 -10 -9 -9 ----------- Run | Yrd Mat Mat Sto Matter Collected 710 | 256 114 250 90 Remotely . | . . . . Salvage Created 1033 | 47 185 652 149 Parts 66 | 3 14 34 15 Haulers Intercepted . | . . . . Recyclers Shooed . | . . . . Parts Field Recycled . | . . . . Retrieved Matter . | . . . . Parts Self-Destructed . | . . . . Prevented . | . . . . Parts Restored . | . . . . Kills | -11 -10 -9 -9 ------- Run | Yrd Mat Mat Sto Combat Hostiles Destroyed 26 | 1 5 16 4 Guns 23 | 1 5 14 3 Cannons 1 | . . . 1 AOE 2 | . . 2 . Classes Destroyed 7 | 1 3 2 1 Builder 1 | . . . 1 Recycler 1 | . . 1 . Operator 1 | . 1 . . Watcher 3 | . 2 . 1 Swarmer 10 | . 3 4 3 Grunt 15 | 1 2 10 2 Sentry 2 | . . 2 . Best Kill Streak 8 | 1 3 8 3 Combat Bots Only 8 | 1 3 8 3 Max Kills in Single Turn 3 | 1 1 3 2 Gunslinging . | . . . . Exploded 2 | . . 2 . Melee . | . . . . Uniques/NPCs Destroyed . | . . . . Combat | -11 -10 -9 -9 -------- Run | Yrd Mat Mat Sto Hostile Shots Fired 295 | 1 25 73 196 Missed 94 | 1 8 13 72 Hits 201 | . 17 60 124 Projectile 201 | . 17 60 124 Critical Strikes 2 | . . . 2 Actively Blocked 1 | . . . 1 Damage Taken 2421 | . 224 800 1397 Core 533 | . 62 138 333 Absorbed by Shields . | . . . . Redirected to Shielding 65 | . . 32 33 Core Remaining (%) 87 | 100 75 . . Volleys Fired 67 | 1 23 27 16 Largest 3 | 2 2 3 3 Hottest 103 | 40 40 103 83 Shots Fired 151 | 2 46 69 34 Gun 143 | 2 46 69 26 Cannon 5 | . . . 5 Launcher 3 | . . . 3 Special . | . . . . Kinetic 122 | 2 46 52 22 Thermal 7 | . . 7 . Explosive 3 | . . . 3 Electromagnetic 19 | . . 10 9 Robot Hit Streak 18 | 1 18 12 4 Robot Miss Streak 6 | . 4 2 6 Penetration Max . | . . . . Secondary Targets 2 | . . 2 . Max Gunslinging Chain 1 | . . 1 . Shots Hit Robots 93 | 1 28 47 17 Core Hits 52 | 1 12 28 11 Critical Kills . | . . . . Critical Parts Destroyed . | . . . . Critical Strikes . | . . . . Melee Attacks 1 | . . . 1 Impact . | . . . . Slashing . | . . . . Piercing . | . . . . Sneak Attacks . | . . . . Combat Hostiles . | . . . . Follow-up Attacks . | . . . . Damage Inflicted 1482 | 15 362 837 268 Guns 1145 | 15 352 635 143 Cannons 60 | . . . 60 Explosions 266 | . . 202 64 Melee . | . . . . Ramming 11 | . 10 . 1 Kinetic 983 | 15 352 457 159 Thermal 278 | . . 278 . Explosive 64 | . . . 64 Electromagnetic 146 | . . 102 44 Impact . | . . . . Slashing . | . . . . Piercing . | . . . . Highest Corruption 1 | . . . 1 Average Corruption 1 | . . . 1 Corruption Purged . | . . . . Corruption Blocked . | . . . . Overload Shots . | . . . . Overflow Damage . | . . . . Projectiles . | . . . . Explosions . | . . . . Melee . | . . . . Knockbacks . | . . . . Impact . | . . . . Kinetic . | . . . . Secondary . | . . . . Self-Inflicted Damage 84 | . 4 53 27 Shots 2 | . . 1 1 Rammed 2 | . 2 . . Targets Rammed 4 | . 2 . 2 Kicked 2 | . . . 2 Crushed . | . . . . Highest Temperature 193 | . 2 193 105 Average Temperature 51 | . 1 66 30 Received Heat Transfer 867 | . 102 288 477 Siege Activations . | . . . . Martial Activations . | . . . . Shielding Activations . | . . . . Robots Disrupted . | . . . . Combat Hostiles . | . . . . Robots Corrupted . | . . . . Combat Hostiles . | . . . . Parts Fried . | . . . . Impact Corruptions . | . . . . Robots Melted . | . . . . Combat Hostiles . | . . . . Parts Melted . | . . . . Heat Transferred 275 | . . 275 . Parts Sabotaged . | . . . . Parts Stolen . | . . . . Parts Stripped . | . . . . Power Chain Reactions 1 | . . 1 . Alert | -11 -10 -9 -9 ------- Run | Yrd Mat Mat Sto Maximum Alert Level 1 | . . 1 . Low Security (%) 83 | 100 100 47 100 Level 1 16 | . . 52 . Level 2 . | . . . . Level 3 . | . . . . Level 4 . | . . . . Level 5 . | . . . . High Security . | . . . . Max Security . | . . . . Peak Influence 257 | 20 100 257 86 Initial 83 | . 6 18 83 Average 75 | 4 32 161 43 Influence Increases 745 | 20 139 397 189 Destroy 0b10 Robot/C 540 | 20 100 320 100 Destroy 0b10 Robot/NC 30 | . 15 5 10 Destroy Leader 106 | . 24 50 32 Allied During Kill 8 | . . . 8 Destroy Structure 31 | . . 7 24 Lose Combat Pursuer 30 | . . 15 15 Influence Decreases 745 | 10 104 245 386 Entered New Map 145 | . 4 27 114 Time Decay 398 | 10 100 158 130 Lost Part 182 | . . 60 122 Lost Ally 20 | . . . 20 Squads Dispatched 3 | . 1 1 1 Investigation 1 | . . 1 . Extermination . | . . . . Reinforcement 2 | . 1 . 1 Assault . | . . . . Garrison . | . . . . Intercept . | . . . . Searches Triggered . | . . . . Construction Impeded 1 | . . . 1 Haulers Reinforced . | . . . . Active Scanning Responses . | . . . . Cargo Convoy Interrupts . | . . . . Stealth | -11 -10 -9 -9 --------- Run | Yrd Mat Mat Sto Distress Signals 2 | . . 1 1 Communications Jammed . | . . . . Distress Signals . | . . . . Times Spotted 44 | 1 13 19 11 Peak Tracking Total 7 | . 4 7 7 Tactical Retreats 2 | . . 1 1 Traps | -11 -10 -9 -9 ------- Run | Yrd Mat Mat Sto Traps Triggered 1 | . . 1 . Indirectly . | . . . . Trap Hack Attempts . | . . . . Triggered . | . . . . Disarmed . | . . . . Reprogrammed . | . . . . Reused . | . . . . Traps Extracted . | . . . . Installed . | . . . . Triggered . | . . . . Machines | -11 -10 -9 -9 ---------- Run | Yrd Mat Mat Sto Machines Disabled . | . . . . Max in Single Turn . | . . . . Machines Repaired . | . . . . Machines Dismantled . | . . . . Machines Sabotaged . | . . . . Overloaded Fab Kills . | . . . . Hacking | -11 -10 -9 -9 --------- Run | Yrd Mat Mat Sto Machines Accessed 2 | . 1 1 . Terminals 2 | . 1 1 . Fabricators . | . . . . Repair Stations . | . . . . Recycling Units . | . . . . Scanalyzers . | . . . . Garrison Access . | . . . . Total Hacks 2 | . 1 1 . Successful 1 | . . 1 . Failed 1 | . 1 . . Catastrophic 1 | . 1 . . Database Lockouts . | . . . . Manual 6 | . 2 2 2 Terminals 2 | . 1 1 . Fabricators . | . . . . Repair Stations . | . . . . Recycling Units . | . . . . Scanalyzers . | . . . . Garrison Access . | . . . . Terminal Hacks 1 | . . 1 . Zone Layout 1 | . . 1 . Fabricator Hacks . | . . . . Repair Station Hacks . | . . . . Recycling Unit Hacks . | . . . . Scanalyzer . | . . . . Garrison Access Hacks . | . . . . Unauthorized Hacks . | . . . . Terminals . | . . . . Fabricators . | . . . . Repair Stations . | . . . . Recycling Units . | . . . . Scanalyzers . | . . . . Garrison Access . | . . . . Data Cores Recovered 1 | . 1 . . Used . | . . . . Hacking Detections 3 | . 1 1 1 Full Trace Events . | . . . . Feedback Events . | . . . . Feedback Blocked . | . . . . Robot Schematics Acquired . | . . . . Robots Built . | . . . . Authchips . | . . . . Time . | . . . . Total Robot Build Rating . | . . . . Part Schematics Acquired . | . . . . Parts Built . | . . . . Authchips . | . . . . Time . | . . . . Total Part Build Rating . | . . . . Part Studies Acquired . | . . . . Parts Repaired . | . . . . Time . | . . . . Parts Recycled . | . . . . Recycled Matter . | . . . . Retrieved Matter . | . . . . Retrieved Components . | . . . . Parts Scanalyzed . | . . . . Part Schematics Acquired . | . . . . Parts Damaged . | . . . . Bothacking | -11 -10 -9 -9 ------------ Run | Yrd Mat Mat Sto Used RIF Installer . | . . . . Robots Hacked . | . . . . Non-combat . | . . . . Combat . | . . . . Robot Hacks Applied . | . . . . Relay Couplers Released . | . . . . Fabnet Peak Effective % . | . . . . Robots Rewired . | . . . . Allies Hacked . | . . . . Hacks Repelled . | . . . . Allies | -11 -10 -9 -9 -------- Run | Yrd Mat Mat Sto Total Allies 2 | . . . 2 Largest Group 2 | . . . 2 Highest-Rated Group 10 | . . . 10 Highest-Rated Ally 5 | . . . 5 Total Orders . | . . . . Ally Attacks 21 | . . . 21 Total Damage 147 | . . . 147 Kills 1 | . . . 1 Allies Corrupted . | . . . . Allies Melted . | . . . . X0-1V1 Amusement Gains 28 | . 3 5 20 Good Acts 5 | . 1 1 3 Bad Acts 5 | . 1 2 2 Intel | -11 -10 -9 -9 ------- Run | Yrd Mat Mat Sto Active Infowar (turns) . | . . . . Robot Analysis Total . | . . . . Derelict Logs Recovered . | . . . . Drone Launches . | . . . . Drone Recoveries . | . . . . Exploration | -11 -10 -9 -9 ------------- Run | Yrd Mat Mat Sto Turns Passed 1047 | 83 315 337 312 Spaces Moved 515 | 90 226 110 89 Core 23 | 20 . . 3 Treads . | . . . . Legs 158 | . . 72 86 Wheels 334 | 70 226 38 . Hover . | . . . . Flight . | . . . . Fastest Speed 50 | 50 80 110 260 Average Speed 150 | 73 101 208 279 Slowest Speed 850 | 80 110 260 850 Overloaded Moves . | . . . . Propulsion Burnouts . | . . . . Robots Hopped . | . . . . Potential Cave-ins . | . . . . Cave-ins Triggered . | . . . . Exploration Rate (%) 19 | 8 34 12 22 Regions Visited 3 Branch Regions 1 Pre-discovered Areas . | . . . . Known Exits Taken . | . . . . Unknown Exits Taken 3 | 1 1 1 . Scrap Searched . | . . . . Spaces Dug . | . . . . Terrain Destroyed 30 | . . 8 22 Melee . | . . . . Projectile 1 | . . . 1 AOE 29 | . . 8 21 Terrain Rammed . | . . . . Walls Destroyed . | . . . . Machines Disabled . | . . . . Actions | -11 -10 -9 -9 --------- Run | Yrd Mat Mat Sto Total 662 | 104 266 169 123 Wait 6 | 1 3 2 . Move 512 | 89 225 109 89 Hop . | . . . . Pick Up 31 | 7 8 15 1 Fast Attach 9 | 4 2 . 3 Attach 21 | 1 . 9 11 Detach . | . . . . Swap 2 | . . 2 . Drop 9 | 1 3 5 . Fire 67 | 1 23 27 16 Melee 1 | . . . 1 Ram 2 | . 2 . . Kick 2 | . . . 2 Crush . | . . . . Escape Stasis . | . . . . Rewire . | . . . . Trap . | . . . . Miscellaneous . | . . . . Route ------- -11/Scrapyard -10/Materials -9/Materials (discovered 2 exits: *Sto x2) -9/Storage History --------- Turn | Location | Event 2 | -11/Scrapyard | Met Revision 17 61 | -11/Scrapyard | Discovered new exit (range 8) 84 | -11/Scrapyard | Entered Materials 305 | -10/Materials | Build established: Mutant 341 | -10/Materials | Prayed at D.C.S.S. Altar Unit 359 | -10/Materials | Discovered new exit (range 9) 399 | -10/Materials | Entered another Materials area 399 | -9/Materials | Evolved 2 slots: Utility x1, Weapon x1 404 | -9/Materials | Discovered new exit (range 14) 436 | -9/Materials | Discovered new exit (range 13) 518 | -9/Materials | Destroyed 8 combat bots 552 | -9/Materials | Lost 6 parts (1p2n3w) 579 | -9/Materials | X0-1V1 released a cloud of subatomizers 736 | -9/Materials | Entered Storage 815 | -9/Storage | Core integrity restored by X0-1V1 (+68) 981 | -9/Storage | X0-1V1 sent allied S-10 Pest (x2) 1000 | -9/Storage | Core integrity fell below 50% 1015 | -9/Storage | X0-1V1 upgraded hostiles (x2) 1031 | -9/Storage | Core integrity fell below 20% 1048 | -9/Storage | Destroyed by Y-54 Guardian with Gatling Laser Last Messages --------------- 01022_ K-01 Serf destroyed. 01025_ The unstable cave ceiling collapses. 01028_ Extracted 27 matter. 01030_ Acquired Med. Matter Pod. 01030_ Sml. Laser destroyed. 01034_ Acquired Corrupted Particle Gun. 01034_ Integrated Corrupted Particle Gun (+1). [Achievement: A Problem For Future Me] 01034_ Complication: Aluminum Leg rejected. 01043_ Ion Engine destroyed. Bump into an enemy to attack with the active melee weapon. Even while active, melee weapons do not fire together with ranged weapons in the same volley. 01044_ Particle Gun destroyed. 01047_ X0-1V1 ensures you are ready for glorious battle (+EM Shotgun). [Achievement: First Step to Greatness] 01048_ X0-1V1 giggles madly! [Achievement: 5k Club] Map ----- +----------------------------------------------------+ | | | | | | | ?????????????????????????????????????????????????? | | ?????????????????????????????????????????????????? | | ?????????????????????????????????????????????????? | | ?????????????????????????????????????????????????? | | ?????????????????????????????????????????????????? | | ?????????????????????????????????????????????????? | | ?????????????????????????????????????????????????? | | ?????????????????????????????????????????????????? | | ?????????????????????????????????????????????????? | | ?????????????????????????????#####???????????????? | | ????????????????????????????? #???????????????? | | ????????????????????????????? /[[#???????????????? | | #######?????????????????????? /[[#???????????????? | | #??##"""#?????????? """ [[ #???????????????? | | #??#T #?????????? """ #???????????????? | | !! #??## #???????????""" ????????????????? | | #???##+############?""" ?????????????????? | | #???# + #??"" ??????????????????? | | = % ##### # #?? ???????????????????? | | % / # #?##+########### ?????? | | ! ##### # ### Y u ?????? | | #######???# + ##%* *%[ ?????? | | ??????????# # %/@%g ?????? | | ??????????# # ##= %* ######### ?????? | | ??????????# # ## #?????????????????? | | ??????????# ############ #?????????????????? | | ??????????# #??????????# ##?????????????????? | | ??????????# ??????????# #??????????????????? | | ?????????? ??????????# #??????????????????? | | ?????????## ??????????# ??????????????????? | | ??????????###+#+?????????# #?????????????????? | | ?????????????????????????# # ?????????????????? | | ?????????????????????????# ????????????????? | | ?????????????????????????# % " ????????????????? | | ?????????????????????????#% "???????????????? | | ?????????????????????????## #T#???????????????? | | ??????????????????????????? ##?????????????????? | | ??????????????????????????? #??????????????????? | | ??????????????????????????? ???????????????????? | | ?????????????????????????????????????????????????? | | ?????????????????????????????????????????????????? | | ?????????????????????????????????????????????????? | | ?????????????????????????????????????????????????? | | ?????????????????????????????????????????????????? | | ?????????????????????????????????????????????????? | | ?????????????????????????????????????????????????? | | ?????????????????????????????????????????????????? | +----------------------------------------------------+ Best States ------------- Heat Dissipation 28 Energy Generation 10 Energy Capacity 250 Matter Stores 300 Matter Capacity 400 Sight Range 16 Terrain Scan Density 10 Propulsion Shielding 33 Evasion (%) 50 Item Schematics ----------------- None Robot Schematics ------------------ None Fabricated ------------ Nothing Repaired ---------- Nothing Studied --------- None Alien Tech Used ----------------- None Achievements -------------- 5k Club A Problem For Future Me Backstab Chaos Is Inevitable Crack Shot First Step to Greatness For Emergencies Only Hydra I Have A Map? Let's See Who's Tougher Organ Harvest Storm Trooper That Tickles There's More Where That Came From Uninvited Guest Challenges ------------ None Game ------ Seed FusionGrenadeChip Manual? 0 Play Time 00:19:28 Cumulative 0.2 hours Start 2026.08.03 @ 16:05:57 End 2026.08.03 @ 16:55:41 Sessions 1 Manual Loads 0 Difficulty Rogue Special Mode None Game No. 1 Rogue 1 Adventurer 0 Explorer 0 Win Type - Total 0 Types 0/0/0/0/0/0/0/0/0/0 Lore% 0 Gallery% 1 Achievement% 3 Wizard Run 0 Options --------- Layout 1 ASCII 0 Keyboard 1 Movement Vi Keybinds 0 Fullscreen 0 Font 24/Proggy Map View 50x35 Zoom Use 0% Tactical HUD 1 Map Filters NONE Filters NONE Steam 0 RUN: 503cf0af-e419-43d0-a4fa-1fa94a892e03